fUSD/lending_fUSD_20250404
["ID","MTS","AMOUNT","RATE_DAILY","PERIOD"]
[357102546,1743742271340,-500.0,0.00050684,120]
[357102547,1743742271350,-583.75,0.00050684,120]
[357102548,1743742271359,-2229.15,0.00050684,120]
[357102549,1743742271369,-1669.74,0.00050684,120]
[357102550,1743742271379,-500.0,0.00050684,120]
[357102551,1743742271388,-500.0,0.00050684,2]
[357102552,1743742271398,-529.37,0.00050684,120]
[357102553,1743742271408,-500.0,0.00050684,120]
[357102554,1743742271418,-1147.88,0.00050684,120]
[357102555,1743742271427,-500.0,0.00050684,120]
[357102556,1743742271436,-500.0,0.00050684,2]
[357102557,1743742271446,-1575.12,0.00050684,120]
[357102558,1743742271456,-295.86299921,0.00050684,30]
[357102559,1743742271465,-2000.0,0.000507,2]
[357102560,1743742271475,-8086.92,0.000508,14]
[357102561,1743742271486,-500.0,0.00050958,2]
[357102562,1743742271496,-1627.45,0.00050958,120]
[357102563,1743742271505,-1661.534427,0.00050958,120]
[357102564,1743742271515,-1847.248262,0.00050958,120]
[357102565,1743742271524,-500.0,0.00050958,3]
[357102566,1743742271535,-500.0,0.00050958,120]
[357102567,1743742271544,-668.69,0.00050958,120]
[357102568,1743742271553,-500.0,0.00050958,120]
[357102569,1743742271563,-500.0,0.00050958,120]
[357102570,1743742271572,-500.0,0.00050958,120]
[357102571,1743742271582,-500.0,0.00050958,120]
[357102572,1743742271592,-545.5143485,0.00050958,120]
[357102573,1743742271601,-1018.55,0.00050958,10]
[357102574,1743742271611,-528.07,0.00050958,120]
[357102575,1743742271621,-500.0,0.00050958,30]
[357102576,1743742271630,-500.0,0.00050958,120]
[357102577,1743742271640,-2000.0,0.00050958,2]
[357102578,1743742271650,-636.7,0.00050958,120]
[357102579,1743742271659,-2104.44,0.00050958,120]
[357102580,1743742271669,-500.0,0.00050958,120]
[357102581,1743742271678,-345.15860861,0.00050958,120]
[357102582,1743742271687,-1964.9,0.00050958,120]
[357102583,1743742271697,-3250.94,0.00050958,2]
[357102584,1743742271706,-500.0,0.00050958,120]
[357102585,1743742271716,-500.0,0.00050958,120]
[357102586,1743742271726,-1041.18,0.00050958,120]
[357102587,1743742271735,-500.0,0.00050958,120]
[357102588,1743742271744,-1836.7,0.00050958,120]
[357102589,1743742271753,-500.0,0.00050958,120]
[357102590,1743742271763,-561.86,0.00050958,120]
[357102591,1743742271772,-1026.47,0.00050958,120]
[357102592,1743742271782,-500.0,0.00050958,120]
[357102593,1743742271791,-1708.57,0.00050958,120]
[357102594,1743742271800,-2260.17,0.00050958,120]
[357102595,1743742271810,-1847.64,0.00050958,120]
[357102596,1743742271819,-1600.29,0.00050958,120]
[357102597,1743742271828,-972.82,0.00050958,120]
[357102598,1743742271837,-1667.89,0.00050958,120]
[357102599,1743742271847,-1074.38,0.00050958,30]
[357102600,1743742271856,-2122.56,0.00050958,120]
[357102601,1743742271866,-422.59834766,0.00050958,120]
[357102602,1743742271879,-500.0,0.00050958,120]
[357102603,1743742271888,-1956.99,0.00050958,120]
[357102604,1743742271898,-1120.02,0.00050958,120]
[357102605,1743742271907,-500.0,0.00050958,120]
[357102606,1743742271917,-1669.42,0.00050958,120]
[357102607,1743742271927,-500.0,0.00050958,120]
[357102608,1743742271936,-500.0,0.00050958,30]
[357102609,1743742271945,-533.22,0.00050958,2]
[357102610,1743742271956,-175.67759026,0.00050958,120]
[357102611,1743742271966,-2109.35,0.00050958,120]
[357102612,1743742271977,-2628.48,0.00050958,120]
[357102613,1743742271985,-560.52,0.00050958,120]
[357102614,1743742271995,-1936.83,0.00050958,120]
[357102615,1743742272004,-1759.76,0.00050958,120]
[357102616,1743742272014,-2302.46,0.00050958,120]
[357102617,1743742272023,-324.8753458,0.00050958,120]
[357102618,1743742272033,-1845.54,0.00050958,120]
[357102619,1743742272043,-2235.82,0.00050958,120]
[357102620,1743742272052,-500.0,0.00050958,120]
[357102621,1743742272061,-650.53,0.00050958,120]
[357102622,1743742272071,-1764.75,0.00050958,120]
[357102623,1743742272080,-2294.51,0.00050958,120]
[357102624,1743742272089,-1798.97,0.00050958,120]
[357102625,1743742272099,-2061.78,0.00050958,120]
[357102626,1743742272109,-500.0,0.00050958,120]
[357102627,1743742272118,-2212.69,0.00050958,120]
[357102628,1743742272128,-2600.67,0.00050958,120]
[357102629,1743742272137,-500.0,0.00050958,120]
[357102630,1743742272281,-1758.13,0.00050958,120]
[357102631,1743742272291,-2390.89,0.00050958,120]
[357102632,1743742272302,-318.8039097,0.00050958,120]
[357102633,1743742272311,-1773.07,0.00050958,120]
[357102634,1743742272321,-1780.62,0.00050958,120]
[357102635,1743742272331,-2213.48,0.00050958,120]
[357102636,1743742272341,-500.0,0.00050958,120]
[357102637,1743742272350,-500.0,0.00050958,120]
[357102638,1743742272359,-1740.8,0.00050958,120]
[357102639,1743742272369,-500.0,0.00050958,120]
[357102640,1743742272378,-1782.21,0.00050958,120]
[357102641,1743742272387,-2008.49,0.00050958,120]
[357102642,1743742272397,-810.96,0.00050958,120]
[357102643,1743742272406,-523.36,0.00050958,120]
[357102644,1743742272416,-2260.47,0.00050958,120]
[357102645,1743742272425,-668.1,0.00050958,120]
[357102646,1743742272435,-500.0,0.00050958,120]
[357102647,1743742272444,-2235.26,0.00050958,120]
[357102648,1743742272453,-2123.04,0.00050958,120]
[357102649,1743742272463,-1337.55,0.00050958,30]
[357102650,1743742272472,-1605.02,0.00050958,120]
[357102651,1743742272482,-482.94806024,0.00050958,120]
[357102652,1743742272491,-500.0,0.00050958,120]
[357102653,1743742272500,-1657.36,0.00050958,120]
[357102654,1743742272510,-1702.41,0.00050958,120]
[357102655,1743742272519,-1553.62,0.00050958,120]
[357102656,1743742272529,-500.0,0.00050958,120]
[357102657,1743742272538,-500.0,0.00050958,120]
[357102658,1743742272548,-1286.62,0.00050958,120]
[357102659,1743742272557,-500.0,0.00050958,100]
[357102660,1743742272567,-500.0,0.00050958,120]
[357102661,1743742272576,-1768.28,0.00050958,120]
[357102662,1743742272585,-500.0,0.00050958,12]
[357102663,1743742272595,-1152.52,0.00050958,120]
[357102664,1743742272605,-2735.4,0.00050958,120]
[357102665,1743742272615,-741.55,0.00050958,120]
[357102666,1743742272624,-500.0,0.00050958,120]
[357102667,1743742272634,-2305.38,0.00050958,120]
[357102668,1743742272643,-1520.4,0.00050958,120]
[357102669,1743742272652,-1181.69,0.00050958,120]
[357102670,1743742272662,-1494.55,0.00050958,120]
[357102671,1743742272672,-2859.57,0.00050958,120]
[357102672,1743742272682,-1642.16,0.00050958,120]
[357102673,1743742272691,-1845.58,0.00050958,120]
[357102674,1743742272700,-266.1370538,0.00050958,120]
[357102675,1743742272710,-500.0,0.00050958,120]
[357102676,1743742272720,-725.01,0.00050958,120]
[357102677,1743742272729,-1790.85,0.00050958,120]
[357102678,1743742272738,-500.0,0.00050958,120]
[357102679,1743742272747,-1795.3,0.00050958,120]
[357102680,1743742272757,-2215.63,0.00050958,120]
[357102681,1743742272766,-378.73469739,0.00050958,120]
[357102682,1743742272775,-217.43247785,0.00050958,120]
[357102683,1743742272785,-500.0,0.00050958,120]
[357102684,1743742272795,-500.0,0.00050958,120]
[357102685,1743742272804,-415.96166544,0.00050958,120]
[357102686,1743742272814,-1621.94,0.00050958,120]
[357102687,1743742272823,-1984.67,0.00050958,120]
[357102688,1743742272833,-500.0,0.00050958,10]
[357102689,1743742272843,-500.0,0.00050958,120]
[357102690,1743742272852,-500.0,0.00050958,120]
[357102691,1743742272862,-1238.29,0.00050958,120]
[357102692,1743742272871,-2200.62,0.00050958,120]
[357102693,1743742272885,-534.24,0.00050958,120]
[357102694,1743742272894,-500.0,0.00050958,7]
[357102695,1743742272903,-500.0,0.00050958,120]
[357102696,1743742272913,-1910.5,0.00050958,120]
[357102697,1743742272922,-1140.44,0.00050958,120]
[357102698,1743742272932,-2219.86,0.00050958,120]
[357102699,1743742272941,-500.0,0.00050958,120]
[357102700,1743742272952,-500.0,0.00050958,120]
[357102701,1743742272962,-2020.09,0.00050958,120]
[357102702,1743742272971,-2048.88,0.00050958,120]
[357102703,1743742272980,-500.0,0.00050958,120]
[357102704,1743742272991,-804.71,0.00050958,120]
[357102705,1743742273000,-500.0,0.00050958,120]
[357102706,1743742273010,-2025.27,0.00050958,120]
[357102707,1743742273019,-634.27,0.00050958,120]
[357102708,1743742273029,-558.62,0.00050958,120]
[357102709,1743742273039,-500.0,0.00050958,120]
[357102710,1743742273048,-1033.99,0.00050958,120]
[357102711,1743742273058,-2611.84,0.00050958,120]
[357102712,1743742273068,-500.0,0.00050958,120]
[357102713,1743742273077,-1942.56,0.00050958,120]
[357102714,1743742273087,-1677.91,0.00050958,120]
[357102715,1743742273096,-624.53,0.00050958,120]
[357102716,1743742273105,-2219.22,0.00050958,120]
[357102717,1743742273115,-2008.94,0.00050958,120]
[357102718,1743742273124,-751.55,0.00050958,120]
[357102719,1743742273134,-1907.67,0.00050958,120]
[357102720,1743742273143,-405.58135278,0.00050958,120]
[357102721,1743742273154,-2210.43,0.00050958,120]
[357102722,1743742273163,-1861.33,0.00050958,120]
[357102723,1743742273173,-607.75,0.00050958,120]
[357102724,1743742273187,-10738.0,0.00050958,2]
[357102725,1743742273198,-525.26,0.00050958,120]
[357102726,1743742273209,-127491.97,0.00050958,7]
[357102727,1743742273220,-829.28,0.00050958,120]
[357102728,1743742273230,-500.0,0.00050958,120]
[357102729,1743742273240,-583.75,0.00050958,120]
[357102730,1743742273251,-2229.15,0.00050958,120]
[357102731,1743742273261,-1669.74,0.00050958,120]
[357102732,1743742273270,-500.0,0.00050958,120]
[357102733,1743742273281,-500.0,0.00050958,2]
[357102734,1743742273291,-529.37,0.00050958,120]
[357102735,1743742273300,-500.0,0.00050958,120]
[357102736,1743742273310,-1147.88,0.00050958,120]
[357102737,1743742273321,-500.0,0.00050958,120]
[357102738,1743742273331,-500.0,0.00050958,2]
[357102739,1743742273343,-1575.12,0.00050958,120]
[357102740,1743742273353,-50000.0,0.00051,51]
[357102741,1743742273362,-1000000.0,0.00051,120]
[357102742,1743742273371,-10263.0,0.00051,90]
[357102743,1743742273380,-500.0,0.00051,52]
[357102744,1743742273389,-1000000.0,0.00051,120]
[357102745,1743742273399,-1000000.0,0.00051,120]
[357102746,1743742273408,-20000.0,0.00051,120]
[357102747,1743742273418,-235.19300919,0.00051,30]
[357102748,1743742273427,-850.0,0.00051,2]
[357102749,1743742273437,-715.44,0.000512,120]
[357102750,1743742273447,-500.0,0.00051232,2]
[357102751,1743742273458,-1627.45,0.00051232,120]
[357102752,1743742273468,-1661.534427,0.00051232,120]
[357102753,1743742273478,-1847.248262,0.00051232,120]
[357102754,1743742273487,-416.10948736,0.00051232,3]
[357102755,1743742273496,-482.25288474,0.00051232,120]
[357102756,1743742273506,-668.69,0.00051232,120]
[357102757,1743742273515,-500.0,0.00051232,120]
[357102758,1743742273525,-500.0,0.00051232,120]
[357102759,1743742273535,-500.0,0.00051232,120]
[357102760,1743742273545,-500.0,0.00051232,120]
[357102761,1743742273554,-1018.55,0.00051232,10]
[357102762,1743742273563,-528.07,0.00051232,120]
[357102763,1743742273573,-500.0,0.00051232,30]
[357102764,1743742273582,-500.0,0.00051232,120]
[357102765,1743742273592,-2000.0,0.00051232,2]
[357102766,1743742273601,-636.7,0.00051232,120]
[357102767,1743742273611,-2104.44,0.00051232,120]
[357102768,1743742273620,-500.0,0.00051232,120]
[357102769,1743742273630,-1964.9,0.00051232,120]
[357102770,1743742273640,-500.0,0.00051232,120]
[357102771,1743742273649,-3250.94,0.00051232,2]
[357102772,1743742273659,-500.0,0.00051232,120]
[357102773,1743742273668,-1041.18,0.00051232,120]
[357102774,1743742273678,-500.0,0.00051232,120]
[357102775,1743742273688,-1836.7,0.00051232,120]
[357102776,1743742273697,-500.0,0.00051232,120]
[357102777,1743742273706,-561.86,0.00051232,120]
[357102778,1743742273717,-1026.47,0.00051232,120]
[357102779,1743742273726,-500.0,0.00051232,120]
[357102780,1743742273737,-1708.57,0.00051232,120]
[357102781,1743742273746,-2260.17,0.00051232,120]
[357102782,1743742273756,-1847.64,0.00051232,120]
[357102783,1743742273765,-1600.29,0.00051232,120]
[357102784,1743742273774,-972.82,0.00051232,120]
[357102785,1743742273783,-1667.89,0.00051232,120]
[357102786,1743742273793,-1074.38,0.00051232,30]
[357102787,1743742273803,-2122.56,0.00051232,120]
[357102788,1743742273812,-500.0,0.00051232,120]
[357102789,1743742273822,-1956.99,0.00051232,120]
[357102790,1743742273831,-1120.02,0.00051232,120]
[357102791,1743742273840,-500.0,0.00051232,120]
[357102792,1743742273850,-1669.42,0.00051232,120]
[357102793,1743742273860,-500.0,0.00051232,120]
[357102794,1743742273870,-500.0,0.00051232,30]
[357102795,1743742273884,-533.22,0.00051232,2]
[357102796,1743742273894,-2109.35,0.00051232,120]
[357102797,1743742273904,-2628.48,0.00051232,120]
[357102798,1743742273914,-560.52,0.00051232,120]
[357102799,1743742273925,-1936.83,0.00051232,120]
[357102800,1743742273934,-1759.76,0.00051232,120]
[357102801,1743742273943,-2302.46,0.00051232,120]
[357102802,1743742273953,-1845.54,0.00051232,120]
[357102803,1743742273963,-2235.82,0.00051232,120]
[357102804,1743742273972,-500.0,0.00051232,120]
[357102805,1743742273981,-650.53,0.00051232,120]
[357102806,1743742273990,-1764.75,0.00051232,120]
[357102807,1743742273999,-2294.51,0.00051232,120]
[357102808,1743742274009,-1798.97,0.00051232,120]
[357102809,1743742274019,-2061.78,0.00051232,120]
[357102810,1743742274029,-500.0,0.00051232,120]
[357102811,1743742274039,-2212.69,0.00051232,120]
[357102812,1743742274049,-2600.67,0.00051232,120]
[357102813,1743742274059,-500.0,0.00051232,120]
[357102814,1743742274068,-1758.13,0.00051232,120]
[357102815,1743742274078,-2390.89,0.00051232,120]
[357102816,1743742274087,-1773.07,0.00051232,120]
[357102817,1743742274097,-1780.62,0.00051232,120]
[357102818,1743742274106,-2213.48,0.00051232,120]
[357102819,1743742274115,-500.0,0.00051232,120]
[357102820,1743742274125,-500.0,0.00051232,120]
[357102821,1743742274134,-1740.8,0.00051232,120]
[357102822,1743742274143,-500.0,0.00051232,120]
[357102823,1743742274153,-1782.21,0.00051232,120]
[357102824,1743742274162,-2008.49,0.00051232,120]
[357102825,1743742274171,-810.96,0.00051232,120]
[357102826,1743742274181,-523.36,0.00051232,120]
[357102827,1743742274190,-2260.47,0.00051232,120]
[357102828,1743742274199,-668.1,0.00051232,120]
[357102829,1743742274209,-500.0,0.00051232,120]
[357102830,1743742274218,-2235.26,0.00051232,120]
[357102831,1743742274227,-2123.04,0.00051232,120]
[357102832,1743742274237,-1337.55,0.00051232,30]
[357102833,1743742274247,-1605.02,0.00051232,120]
[357102834,1743742274256,-503.64213007,0.00051232,120]
[357102835,1743742274266,-1657.36,0.00051232,120]
[357102836,1743742274275,-1702.41,0.00051232,120]
[357102837,1743742274284,-1553.62,0.00051232,120]
[357102838,1743742274294,-500.0,0.00051232,120]
[357102839,1743742274304,-180.20171913,0.00051232,120]
[357102840,1743742274314,-1286.62,0.00051232,120]
[357102841,1743742274324,-500.0,0.00051232,100]
[357102842,1743742274334,-500.0,0.00051232,120]
[357102843,1743742274344,-1768.28,0.00051232,120]
[357102844,1743742274353,-500.0,0.00051232,12]
[357102845,1743742274363,-1152.52,0.00051232,120]
[357102846,1743742274373,-2735.4,0.00051232,120]
[357102847,1743742274382,-741.55,0.00051232,120]
[357102848,1743742274391,-500.0,0.00051232,120]
[357102849,1743742274402,-2305.38,0.00051232,120]
[357102850,1743742274411,-1520.4,0.00051232,120]
[357102851,1743742274420,-1181.69,0.00051232,120]
[357102852,1743742274430,-1494.55,0.00051232,120]
[357102853,1743742274440,-2859.57,0.00051232,120]
[357102854,1743742274450,-1642.16,0.00051232,120]
[357102855,1743742274460,-1845.58,0.00051232,120]
[357102856,1743742274469,-500.0,0.00051232,120]
[357102857,1743742274479,-1790.85,0.00051232,120]
[357102858,1743742274489,-725.01,0.00051232,120]
[357102859,1743742274499,-500.0,0.00051232,120]
[357102860,1743742274509,-1795.3,0.00051232,120]
[357102861,1743742274520,-2215.63,0.00051232,120]
[357102862,1743742274530,-500.0,0.00051232,120]
[357102863,1743742274539,-500.0,0.00051232,120]
[357102864,1743742274548,-1621.94,0.00051232,120]
[357102865,1743742274559,-1984.67,0.00051232,120]
[357102866,1743742274568,-516.29535497,0.00051232,10]
[357102867,1743742274578,-500.0,0.00051232,120]
[357102868,1743742274587,-500.0,0.00051232,120]
[357102869,1743742274597,-1238.29,0.00051232,120]
[357102870,1743742274606,-2200.62,0.00051232,120]
[357102871,1743742274616,-534.24,0.00051232,120]
[357102872,1743742274626,-500.0,0.00051232,7]
[357102873,1743742274637,-500.0,0.00051232,120]
[357102874,1743742274648,-1910.5,0.00051232,120]
[357102875,1743742274658,-1140.44,0.00051232,120]
[357102876,1743742274668,-2219.86,0.00051232,120]
[357102877,1743742274678,-500.0,0.00051232,120]
[357102878,1743742274688,-500.0,0.00051232,120]
[357102879,1743742274698,-2020.09,0.00051232,120]
[357102880,1743742274708,-2048.88,0.00051232,120]
[357102881,1743742274718,-500.0,0.00051232,120]
[357102882,1743742274728,-804.71,0.00051232,120]
[357102883,1743742274738,-500.0,0.00051232,120]
[357102884,1743742274747,-2025.27,0.00051232,120]
[357102885,1743742274757,-634.27,0.00051232,120]
[357102886,1743742274767,-558.62,0.00051232,120]
[357102887,1743742274778,-500.0,0.00051232,120]
[357102888,1743742274788,-1033.99,0.00051232,120]
[357102889,1743742274798,-2611.84,0.00051232,120]
[357102890,1743742274808,-500.0,0.00051232,120]
[357102891,1743742274818,-1942.56,0.00051232,120]
[357102892,1743742274828,-1677.91,0.00051232,120]
[357102893,1743742274838,-624.53,0.00051232,120]
[357102894,1743742274848,-2219.22,0.00051232,120]
[357102895,1743742274858,-2008.94,0.00051232,120]
[357102896,1743742274869,-751.55,0.00051232,120]
[357102897,1743742274882,-1907.67,0.00051232,120]
[357102898,1743742274892,-2210.43,0.00051232,120]
[357102899,1743742274902,-1861.33,0.00051232,120]
[357102900,1743742274911,-607.75,0.00051232,120]
[357102901,1743742274922,-10738.0,0.00051232,2]
[357102902,1743742274932,-525.26,0.00051232,120]
[357102903,1743742274942,-127491.97,0.00051232,7]
[357102904,1743742274952,-829.28,0.00051232,120]
[357102905,1743742274962,-500.0,0.00051232,120]
[357102906,1743742274972,-583.75,0.00051232,120]
[357102907,1743742274982,-2229.15,0.00051232,120]
[357102908,1743742274992,-1669.74,0.00051232,120]
[357102909,1743742275002,-500.0,0.00051232,120]
[357102910,1743742275012,-500.0,0.00051232,2]
[357102911,1743742275021,-529.37,0.00051232,120]
[357102912,1743742275030,-500.0,0.00051232,120]
[357102913,1743742275041,-1147.88,0.00051232,120]
[357102914,1743742275051,-500.0,0.00051232,120]
[357102915,1743742275060,-500.0,0.00051232,2]
[357102916,1743742275070,-1575.12,0.00051232,120]
[357102917,1743742275079,-82186.67401536,0.00051232,30]
[357102918,1743742275089,-1066.0,0.000513,30]
[357102919,1743742275099,-152.53,0.000513,48]
[357102920,1743742275109,-152.53,0.000513,48]
[357102921,1743742275118,-152.53,0.000513,48]
[357102922,1743742275128,-152.53,0.000513,48]
[357102923,1743742275138,-152.53,0.000513,48]
[357102924,1743742275270,-152.53,0.000513,48]
[357102925,1743742275294,-152.53,0.000513,48]
[357102926,1743742275304,-152.53,0.000513,48]
[357102927,1743742275313,-78966.89913286,0.00051382,20]
[357102928,1743742275323,-2000.0,0.0005144,31]
[357102929,1743742275334,-500.0,0.00051506,2]
[357102930,1743742275343,-1627.45,0.00051506,120]
[357102931,1743742275353,-1661.534427,0.00051506,120]
[357102932,1743742275362,-1847.248262,0.00051506,120]
[357102933,1743742275373,-668.69,0.00051506,120]
[357102934,1743742275383,-500.0,0.00051506,120]
[357102935,1743742275393,-500.0,0.00051506,120]
[357102936,1743742275403,-500.0,0.00051506,120]
[357102937,1743742275413,-500.0,0.00051506,120]
[357102938,1743742275423,-1018.55,0.00051506,10]
[357102939,1743742275433,-528.07,0.00051506,120]
[357102940,1743742275443,-500.0,0.00051506,30]
[357102941,1743742275453,-500.0,0.00051506,120]
[357102942,1743742275463,-2000.0,0.00051506,2]
[357102943,1743742275473,-636.7,0.00051506,120]
[357102944,1743742275482,-2104.44,0.00051506,120]
[357102945,1743742275492,-500.0,0.00051506,120]
[357102946,1743742275502,-1964.9,0.00051506,120]
[357102947,1743742275511,-500.0,0.00051506,120]
[357102948,1743742275520,-3250.94,0.00051506,2]
[357102949,1743742275530,-500.0,0.00051506,120]
[357102950,1743742275539,-1041.18,0.00051506,120]
[357102951,1743742275548,-500.0,0.00051506,120]
[357102952,1743742275559,-1836.7,0.00051506,120]
[357102953,1743742275568,-500.0,0.00051506,120]
[357102954,1743742275578,-561.86,0.00051506,120]
[357102955,1743742275587,-1026.47,0.00051506,120]
[357102956,1743742275597,-500.0,0.00051506,120]
[357102957,1743742275608,-1708.57,0.00051506,120]
[357102958,1743742275618,-2260.17,0.00051506,120]
[357102959,1743742275627,-1847.64,0.00051506,120]
[357102960,1743742275636,-1600.29,0.00051506,120]
[357102961,1743742275646,-972.82,0.00051506,120]
[357102962,1743742275655,-1667.89,0.00051506,120]
[357102963,1743742275665,-1074.38,0.00051506,30]
[357102964,1743742275675,-2122.56,0.00051506,120]
[357102965,1743742275685,-500.0,0.00051506,120]
[357102966,1743742275694,-1956.99,0.00051506,120]
[357102967,1743742275703,-1120.02,0.00051506,120]
[357102968,1743742275713,-500.0,0.00051506,120]
[357102969,1743742275723,-1669.42,0.00051506,120]
[357102970,1743742275732,-500.0,0.00051506,120]
[357102971,1743742275743,-500.0,0.00051506,30]
[357102972,1743742275752,-533.22,0.00051506,2]
[357102973,1743742275761,-2109.35,0.00051506,120]
[357102974,1743742275771,-2628.48,0.00051506,120]
[357102975,1743742275781,-560.52,0.00051506,120]
[357102976,1743742275790,-1936.83,0.00051506,120]
[357102977,1743742275799,-1759.76,0.00051506,120]
[357102978,1743742275809,-2302.46,0.00051506,120]
[357102979,1743742275819,-1845.54,0.00051506,120]
[357102980,1743742275829,-2235.82,0.00051506,120]
[357102981,1743742275838,-399.52699011,0.00051506,120]
[357102982,1743742275848,-650.53,0.00051506,120]
[357102983,1743742275858,-1764.75,0.00051506,120]
[357102984,1743742275867,-2294.51,0.00051506,120]
[357102985,1743742275877,-1798.97,0.00051506,120]
[357102986,1743742275889,-2061.78,0.00051506,120]
[357102987,1743742275898,-500.0,0.00051506,120]
[357102988,1743742275908,-2212.69,0.00051506,120]
[357102989,1743742275918,-2600.67,0.00051506,120]
[357102990,1743742275927,-500.0,0.00051506,120]
[357102991,1743742275937,-1758.13,0.00051506,120]
[357102992,1743742275947,-2390.89,0.00051506,120]
[357102993,1743742275958,-1773.07,0.00051506,120]
[357102994,1743742275968,-1780.62,0.00051506,120]
[357102995,1743742275978,-2213.48,0.00051506,120]
[357102996,1743742275987,-500.0,0.00051506,120]
[357102997,1743742275997,-500.0,0.00051506,120]
[357102998,1743742276007,-1740.8,0.00051506,120]
[357102999,1743742276016,-500.0,0.00051506,120]
[357103000,1743742276026,-1782.21,0.00051506,120]
[357103001,1743742276036,-2008.49,0.00051506,120]
[357103002,1743742276046,-810.96,0.00051506,120]
[357103003,1743742276055,-523.36,0.00051506,120]
[357103004,1743742276065,-2260.47,0.00051506,120]
[357103005,1743742276075,-668.1,0.00051506,120]
[357103006,1743742276085,-500.0,0.00051506,120]
[357103007,1743742276094,-2235.26,0.00051506,120]
[357103008,1743742276103,-2123.04,0.00051506,120]
[357103009,1743742276114,-1337.55,0.00051506,30]
[357103010,1743742276123,-1605.02,0.00051506,120]
[357103011,1743742276133,-1657.36,0.00051506,120]
[357103012,1743742276143,-1702.41,0.00051506,120]
[357103013,1743742276152,-1553.62,0.00051506,120]
[357103014,1743742276162,-500.0,0.00051506,120]
[357103015,1743742276172,-1286.62,0.00051506,120]
[357103016,1743742276182,-500.0,0.00051506,100]
[357103017,1743742276191,-500.0,0.00051506,120]
[357103018,1743742276200,-1768.28,0.00051506,120]
[357103019,1743742276209,-409.10667329,0.00051506,12]
[357103020,1743742276219,-1152.52,0.00051506,120]
[357103021,1743742276229,-2735.4,0.00051506,120]
[357103022,1743742276238,-741.55,0.00051506,120]
[357103023,1743742276248,-500.0,0.00051506,120]
[357103024,1743742276257,-2305.38,0.00051506,120]
[357103025,1743742276267,-1520.4,0.00051506,120]
[357103026,1743742276276,-1181.69,0.00051506,120]
[357103027,1743742276286,-1494.55,0.00051506,120]
[357103028,1743742276296,-2859.57,0.00051506,120]
[357103029,1743742276306,-1642.16,0.00051506,120]
[357103030,1743742276315,-1845.58,0.00051506,120]
[357103031,1743742276325,-500.0,0.00051506,120]
[357103032,1743742276336,-1790.85,0.00051506,120]
[357103033,1743742276347,-725.01,0.00051506,120]
[357103034,1743742276356,-500.0,0.00051506,120]
[357103035,1743742276365,-1795.3,0.00051506,120]
[357103036,1743742276375,-2215.63,0.00051506,120]
[357103037,1743742276385,-500.0,0.00051506,120]
[357103038,1743742276395,-500.0,0.00051506,120]
[357103039,1743742276405,-1621.94,0.00051506,120]
[357103040,1743742276415,-1984.67,0.00051506,120]
[357103041,1743742276425,-500.0,0.00051506,120]
[357103042,1743742276434,-500.0,0.00051506,120]
[357103043,1743742276444,-1238.29,0.00051506,120]
[357103044,1743742276455,-2200.62,0.00051506,120]
[357103045,1743742276465,-534.24,0.00051506,120]